[Event "GAMMA Reykjavik Open 2019"]
[Site "Reykjavik"]
[Date "2019.04.16"]
[Round "9.11"]
[White "Astaneh Lopez, Alex"]
[Black "Van Foreest, Jorden"]
[Result "0-1"]
[ECO "A92"]
[WhiteElo "2427"]
[BlackElo "2598"]
[Annotator "ChessBase"]
[PlyCount "56"]
[EventDate "2019.04.04"]
[EventType "swiss"]
[EventCountry "ISL"]
[SourceTitle "playchess.com"]
[Source "ChessBase"]
[SourceQuality "1"]
[TimeControl "40/5400+30:1800+30"]

1. d4 {[%emt 0:05:26]} f5 {[%emt 0:00:00]} 2. g3 {[%emt 0:01:44]} Nf6 {[%emt 0:00:08]} 3. Bg2 {[%emt 0:00:04]} e6 {[%emt 0:00:23]} 4. c4 {[%emt 0:00:09]} Be7 {[%emt 0:00:16]} 5. Nf3 {[%emt 0:02:51]} O-O {[%emt 0:00:15]} 6. d5 {[%emt 0:02:48]} a5 {[%emt 0:08:17]} 7. O-O {[%emt 0:02:45]} Na6 {[%emt 0:03:16]} 8. Bf4 {[%emt 0:11:17]} Nc5 {[%emt 0:05:34]} 9. d6 {[%emt 0:03:51]} cxd6 {[%emt 0:00:10]} 10. Bxd6 {[%emt 0:00:04]} Bxd6 {[%emt 0:02:17]} 11. Qxd6 {[%emt 0:00:06]} Nfe4 {[%emt 0:00:34]} 12. Qd4 {[%emt 0:00:48]} b6 {[%emt 0:10:22]} 13. Nc3 {[%emt 0:04:13]} Bb7 {[%emt 0:00:32]} 14. Rad1 {[%emt 0:12:38]} Qf6 {[%emt 0:04:49]} 15. Ne5 {[%emt 0:05:47]} d6 {[%emt 0:17:27]} 16. Nxe4 {[%emt 0:02:33]} fxe4 {[%emt 0:00:10]} 17. Qxd6 {[%emt 0:13:11]} Rad8 {[%emt 0:00:38]} 18. Qxb6 {[%emt 0:00:21]} Rxd1 {[%emt 0:00:06]} 19. Qxc5 {[%emt 0:00:27]} Rd2 {[%emt 0:09:55]} 20. Qe3 {[%emt 0:04:45]} Qh6 {[%emt 0:00:10]} 21. Qb6 {[%emt 0:06:22]} Ba8 {[%emt 0:00:35]} 22. Re1 {[%emt 0:05:43]} Qf6 {[%emt 0:02:09]} 23. f4 {[%emt 0:03:00]} exf3 {[%emt 0:01:21]} 24. exf3 {[%emt 0:00:55]} Qf5 {[%emt 0:03:16]} 25. g4 {[%emt 0:04:02]} Qf6 {[%emt 0:02:35]} 26. Qe3 {[%emt 0:00:06]} Qf4 {[%emt 0:02:02]} 27. Qc3 {[%emt 0:03:52]} h5 {[%emt 0:00:22]} 28. h3 {[%emt 0:01:05]} Rfd8 {[%emt 0:01:24]} 0-1

[Event "GAMMA Reykjavik Open 2019"]
[Site "Reykjavik"]
[Date "2019.04.16"]
[Round "9.12"]
[White "Low, Zhen Yu Cyrus"]
[Black "Kanarek, Marcel"]
[Result "1/2-1/2"]
[ECO "B32"]
[WhiteElo "2418"]
[BlackElo "2505"]
[Annotator "ChessBase"]
[PlyCount "150"]
[EventDate "2019.04.04"]
[EventType "swiss"]
[EventCountry "ISL"]
[SourceTitle "playchess.com"]
[Source "ChessBase"]
[SourceQuality "1"]
[TimeControl "40/5400+30:1800+30"]

1. e4 {[%emt 0:00:00]} c5 {[%emt 0:00:00]} 2. Nf3 {[%emt 0:00:00]} Nc6 {[%emt 0:00:00]} 3. d4 {[%emt 0:00:00]} cxd4 {[%emt 0:00:00]} 4. Nxd4 {[%emt 0:00:00]} e5 {[%emt 0:00:00]} 5. Nb5 {[%emt 0:00:00]} d6 {[%emt 0:00:00]} 6. c4 {[%emt 0:00:00]} Be7 {[%emt 0:00:00]} 7. N1c3 {[%emt 0:00:05]} a6 {[%emt 0:00:07]} 8. Na3 {[%emt 0:00:05]} Be6 {[%emt 0:03:04]} 9. Nc2 {[%emt 0:00:22]} Bg5 {[%emt 0:00:30]} 10. Be2 {[%emt 0:02:28]} Bxc1 {[%emt 0:04:57]} 11. Rxc1 {[%emt 0:00:09]} Nf6 {[%emt 0:01:58]} 12. O-O {[%emt 0:00:10]} O-O {[%emt 0:00:06]} 13. b3 {[%emt 0:02:00]} Qa5 {[%emt 0:02:56]} 14. Qd2 {[%emt 0:06:17]} b5 {[%emt 0:20:50]} 15. b4 {[%emt 0:24:54]} Nxb4 {[%emt 0:03:05]} 16. Nd5 {[%emt 0:00:13]} Bxd5 {[%emt 0:04:39]} 17. exd5 {[%emt 0:17:51]} Nc6 {[%emt 0:00:13]} 18. Qxa5 {[%emt 0:00:25]} Nxa5 {[%emt 0:00:02]} 19. cxb5 {[%emt 0:00:08]} axb5 {[%emt 0:01:03]} 20. Nb4 {[%emt 0:00:19]} Rfb8 {[%emt 0:06:01]} 21. f4 {[%emt 0:01:47]} e4 {[%emt 0:13:45]} 22. Nc6 {[%emt 0:04:48]} Nxc6 {[%emt 0:04:49]} 23. dxc6 {[%emt 0:00:08]} Rxa2 {[%emt 0:06:53]} 24. Rfd1 {[%emt 0:02:38]} d5 {[%emt 0:12:06]} 25. Bxb5 {[%emt 0:00:06]} Ra7 {[%emt 0:03:44]} 26. g4 {[%emt 0:04:08]} Rc7 {[%emt 0:07:57]} 27. Be2 {[%emt 0:00:40]} Rb2 {[%emt 0:03:04]} 28. Kf1 {[%emt 0:01:24]} h5 {[%emt 0:01:05]} 29. h3 {[%emt 0:01:37]} hxg4 {[%emt 0:00:29]} 30. hxg4 {[%emt 0:00:02]} e3 {[%emt 0:00:55]} 31. Rd3 {[%emt 0:02:46]} Rb4 {[%emt 0:00:03]} 32. Rxe3 {[%emt 0:00:31]} Rxf4+ {[%emt 0:00:02]} 33. Kg2 {[%emt 0:00:05]} Ne4 {[%emt 0:01:29]} 34. Bf3 {[%emt 0:00:30]} Rf6 {[%emt 0:00:30]} 35. Bxe4 {[%emt 0:01:05]} dxe4 {[%emt 0:00:18]} 36. Rxe4 {[%emt 0:00:04]} Rfxc6 {[%emt 0:00:24]} 37. Rxc6 {[%emt 0:00:02]} Rxc6 {[%emt 0:00:06]} 38. Ra4 {[%emt 0:00:10]} Rc3 {[%emt 0:00:25]} 39. Ra5 {[%emt 0:00:31]} Kh7 {[%emt 0:00:11]} 40. Ra6 {[%emt 0:00:00]} f6 {[%emt 0:00:00]} 41. Kf2 {[%emt 0:01:48]} Kg6 {[%emt 0:02:13]} 42. Ra7 {[%emt 0:00:05]} Kh6 {[%emt 0:00:52]} 43. Rb7 {[%emt 0:00:08]} Rh3 {[%emt 0:01:14]} 44. Ra7 {[%emt 0:00:48]} Rd3 {[%emt 0:00:36]} 45. Ra5 {[%emt 0:00:51]} Rd7 {[%emt 0:01:26]} 46. Kf3 {[%emt 0:00:14]} Re7 {[%emt 0:00:24]} 47. Kf4 {[%emt 0:03:36]} g5+ {[%emt 0:01:44]} 48. Kf3 {[%emt 0:00:20]} Rb7 {[%emt 0:01:04]} 49. Rf5 {[%emt 0:01:05]} Rb3+ {[%emt 0:00:33]} 50. Kg2 {[%emt 0:00:05]} Kg6 {[%emt 0:00:20]} 51. Rf1 {[%emt 0:00:05]} Re3 {[%emt 0:00:28]} 52. Rf2 {[%emt 0:00:18]} Kf7 {[%emt 0:00:10]} 53. Rf1 {[%emt 0:00:06]} Ke6 {[%emt 0:00:32]} 54. Rf2 {[%emt 0:00:06]} Rc3 {[%emt 0:00:32]} 55. Rf1 {[%emt 0:00:10]} Rc6 {[%emt 0:00:18]} 56. Kg3 {[%emt 0:00:31]} Ke5 {[%emt 0:00:13]} 57. Re1+ {[%emt 0:00:18]} Kd4 {[%emt 0:00:03]} 58. Rd1+ {[%emt 0:00:14]} Ke4 {[%emt 0:00:23]} 59. Re1+ {[%emt 0:00:04]} Kd3 {[%emt 0:00:05]} 60. Kf3 {[%emt 0:02:46]} Rc4 {[%emt 0:03:00]} 61. Rd1+ {[%emt 0:01:09]} Kc2 {[%emt 0:00:05]} 62. Rd6 {[%emt 0:00:13]} Rf4+ {[%emt 0:00:06]} 63. Kg3 {[%emt 0:00:05]} Kc3 {[%emt 0:00:08]} 64. Rd1 {[%emt 0:00:55]} Rd4 {[%emt 0:00:47]} 65. Rf1 {[%emt 0:00:00]} Rd3+ {[%emt 0:00:34]} 66. Kg2 {[%emt 0:00:00]} Rd6 {[%emt 0:00:10]} 67. Rf3+ {[%emt 0:00:34]} Kd2 {[%emt 0:00:17]} 68. Rf2+ {[%emt 0:00:19]} Ke3 {[%emt 0:00:45]} 69. Rf3+ {[%emt 0:00:08]} Ke4 {[%emt 0:00:07]} 70. Rf1 {[%emt 0:00:04]} Rd2+ {[%emt 0:00:31]} 71. Kg3 {[%emt 0:00:06]} Rd3+ {[%emt 0:00:02]} 72. Kg2 {[%emt 0:00:07]} Ke5 {[%emt 0:00:12]} 73. Rf5+ {[%emt 0:00:04]} Ke6 {[%emt 0:00:03]} 74. Rf1 {[%emt 0:00:05]} Re3 {[%emt 0:00:12]} 75. Rf2 {[%emt 0:00:05]} Ke5 {[%emt 0:00:49]} 1/2-1/2

[Event "GAMMA Reykjavik Open 2019"]
[Site "Reykjavik"]
[Date "2019.04.16"]
[Round "9.13"]
[White "Tang, Andrew"]
[Black "Yoo, Christopher Woojin"]
[Result "1-0"]
[ECO "A48"]
[WhiteElo "2501"]
[BlackElo "2414"]
[Annotator "ChessBase"]
[PlyCount "81"]
[EventDate "2019.04.04"]
[EventType "swiss"]
[EventCountry "ISL"]
[SourceTitle "playchess.com"]
[Source "ChessBase"]
[SourceQuality "1"]
[TimeControl "40/5400+30:1800+30"]

1. d4 {[%emt 0:00:00]} Nf6 {[%emt 0:00:00]} 2. Nf3 {[%emt 0:00:00]} g6 {[%emt 0:00:00]} 3. Nbd2 {[%emt 0:00:00]} c5 {[%emt 0:00:01]} 4. dxc5 {[%emt 0:00:00]} Qa5 {[%emt 0:00:12]} 5. a3 {[%emt 0:00:08]} Qxc5 {[%emt 0:00:12]} 6. b4 {[%emt 0:00:13]} Qc7 {[%emt 0:00:29]} 7. Bb2 {[%emt 0:00:34]} Bg7 {[%emt 0:01:10]} 8. c4 {[%emt 0:01:36]} d6 {[%emt 0:04:14]} 9. g3 {[%emt 0:00:29]} b6 {[%emt 0:01:54]} 10. Bg2 {[%emt 0:00:08]} Bb7 {[%emt 0:00:16]} 11. O-O {[%emt 0:00:38]} O-O {[%emt 0:01:33]} 12. Rc1 {[%emt 0:03:28]} Nbd7 {[%emt 0:00:49]} 13. Qb3 {[%emt 0:00:17]} Rac8 {[%emt 0:06:42]} 14. Rfd1 {[%emt 0:01:22]} a6 {[%emt 0:06:11]} 15. Nf1 {[%emt 0:03:10]} Qb8 {[%emt 0:02:30]} 16. Ne3 {[%emt 0:04:36]} b5 {[%emt 0:22:32]} 17. Bh3 {[%emt 0:26:24]} bxc4 {[%emt 0:04:05]} 18. Nxc4 {[%emt 0:01:42]} Rc7 {[%emt 0:04:54]} 19. Na5 {[%emt 0:02:40]} Rxc1 {[%emt 0:07:24]} 20. Rxc1 {[%emt 0:01:29]} Bh6 {[%emt 0:05:22]} 21. Rd1 {[%emt 0:08:45]} Be4 {[%emt 0:02:33]} 22. Nd2 {[%emt 0:09:11]} Bd5 {[%emt 0:06:39]} 23. Qd3 {[%emt 0:01:14]} Nc5 {[%emt 0:04:13]} 24. Qc2 {[%emt 0:06:55]} Nce4 {[%emt 0:02:24]} 25. Nxe4 {[%emt 0:00:20]} Bxe4 {[%emt 0:00:11]} 26. Qc4 {[%emt 0:00:13]} Qa8 {[%emt 0:05:29]} 27. Bxf6 {[%emt 0:01:16]} exf6 {[%emt 0:00:07]} 28. Rxd6 {[%emt 0:01:30]} f5 {[%emt 0:02:20]} 29. Qxa6 {[%emt 0:03:59]} Qe8 {[%emt 0:05:56]} 30. Bg2 {[%emt 0:01:06]} Bxg2 {[%emt 0:01:00]} 31. Kxg2 {[%emt 0:00:06]} Qe4+ {[%emt 0:00:03]} 32. f3 {[%emt 0:00:24]} Qe5 {[%emt 0:00:05]} 33. Qd3 {[%emt 0:00:22]} Qb2 {[%emt 0:02:43]} 34. Nc4 {[%emt 0:02:01]} Qa2 {[%emt 0:00:11]} 35. Rd8 {[%emt 0:02:04]} Rxd8 {[%emt 0:01:10]} 36. Qxd8+ {[%emt 0:00:03]} Bf8 {[%emt 0:00:10]} 37. Qd3 {[%emt 0:00:17]} Qa1 {[%emt 0:00:42]} 38. f4 {[%emt 0:01:09]} h5 {[%emt 0:00:22]} 39. Ne5 {[%emt 0:00:11]} h4 {[%emt 0:00:50]} 40. Qd5 {[%emt 0:00:00]} h3+ {[%emt 0:00:00]} 41. Kf2 {[%emt 0:00:52]} 1-0

[Event "GAMMA Reykjavik Open 2019"]
[Site "Reykjavik"]
[Date "2019.04.16"]
[Round "9.14"]
[White "Tania, Sachdev"]
[Black "Loiseau, Quentin"]
[Result "0-1"]
[ECO "E04"]
[WhiteElo "2397"]
[BlackElo "2461"]
[Annotator "ChessBase"]
[PlyCount "54"]
[EventDate "2019.04.04"]
[EventType "swiss"]
[EventCountry "ISL"]
[SourceTitle "playchess.com"]
[Source "ChessBase"]
[SourceQuality "1"]
[TimeControl "40/5400+30:1800+30"]

1. d4 {[%emt 0:00:59]} d5 {[%emt 0:00:00]} 2. c4 {[%emt 0:00:09]} c6 {[%emt 0:00:46]} 3. Nf3 {[%emt 0:00:04]} Nf6 {[%emt 0:00:04]} 4. Nc3 {[%emt 0:00:02]} e6 {[%emt 0:00:13]} 5. g3 {[%emt 0:00:07]} dxc4 {[%emt 0:01:51]} 6. Bg2 {[%emt 0:00:05]} b5 {[%emt 0:00:32]} 7. Ne5 {[%emt 0:00:29]} a6 {[%emt 0:00:37]} 8. O-O {[%emt 0:01:26]} Bb7 {[%emt 0:00:46]} 9. a4 {[%emt 0:00:46]} Qc8 {[%emt 0:01:02]} 10. Bg5 {[%emt 0:01:54]} Nbd7 {[%emt 0:00:44]} 11. Bxf6 {[%emt 0:00:29]} Nxf6 {[%emt 0:00:32]} 12. e3 {[%emt 0:00:05]} Rb8 {[%emt 0:00:14]} 13. Ne4 {[%emt 0:52:14]} Nxe4 {[%emt 0:00:18]} 14. Bxe4 {[%emt 0:00:02]} Bd6 {[%emt 0:02:29]} 15. Qh5 {[%emt 0:13:58]} Qc7 {[%emt 0:04:52]} 16. axb5 {[%emt 0:06:17]} cxb5 {[%emt 0:03:24]} 17. Bxb7 {[%emt 0:00:19]} Qxb7 {[%emt 0:00:56]} 18. Rxa6 {[%emt 0:00:13]} g6 {[%emt 0:01:31]} 19. Qf3 {[%emt 0:00:19]} Bxe5 {[%emt 0:00:11]} 20. Qxb7 {[%emt 0:00:05]} Rxb7 {[%emt 0:00:03]} 21. dxe5 {[%emt 0:00:06]} O-O {[%emt 0:01:22]} 22. Rd1 {[%emt 0:05:09]} Rc8 {[%emt 0:00:43]} 23. Rdd6 {[%emt 0:05:56]} b4 {[%emt 0:01:20]} 24. Rac6 {[%emt 0:02:00]} Rxc6 {[%emt 0:00:19]} 25. Rxc6 {[%emt 0:00:03]} c3 {[%emt 0:00:14]} 26. b3 {[%emt 0:01:20]} Ra7 {[%emt 0:00:17]} 27. Kf1 {[%emt 0:01:13]} Ra3 {[%emt 0:02:03]} 0-1

[Event "GAMMA Reykjavik Open 2019"]
[Site "Reykjavik"]
[Date "2019.04.16"]
[Round "9.15"]
[White "Ragnarsson, Dagur"]
[Black "Kevlishvili, Robby"]
[Result "0-1"]
[ECO "D43"]
[WhiteElo "2380"]
[BlackElo "2451"]
[Annotator "ChessBase"]
[PlyCount "126"]
[EventDate "2019.04.04"]
[EventType "swiss"]
[EventCountry "ISL"]
[SourceTitle "playchess.com"]
[Source "ChessBase"]
[SourceQuality "1"]
[TimeControl "40/5400+30:1800+30"]

1. d4 {[%emt 0:00:00]} d5 {[%emt 0:00:00]} 2. c4 {[%emt 0:00:00]} c6 {[%emt 0:00:00]} 3. Nc3 {[%emt 0:00:00]} Nf6 {[%emt 0:00:00]} 4. Nf3 {[%emt 0:00:00]} e6 {[%emt 0:00:00]} 5. Bg5 {[%emt 0:00:00]} h6 {[%emt 0:00:00]} 6. Bxf6 {[%emt 0:00:00]} Qxf6 {[%emt 0:00:00]} 7. e3 {[%emt 0:00:03]} Nd7 {[%emt 0:00:10]} 8. Bd3 {[%emt 0:00:13]} dxc4 {[%emt 0:00:25]} 9. Bxc4 {[%emt 0:00:06]} g6 {[%emt 0:00:04]} 10. O-O {[%emt 0:00:42]} Bg7 {[%emt 0:00:05]} 11. e4 {[%emt 0:00:40]} O-O {[%emt 0:00:10]} 12. e5 {[%emt 0:00:08]} Qe7 {[%emt 0:00:05]} 13. Re1 {[%emt 0:00:37]} Rd8 {[%emt 0:02:54]} 14. Bd3 {[%emt 0:00:25]} b5 {[%emt 0:05:24]} 15. Rc1 {[%emt 0:01:03]} Bb7 {[%emt 0:19:04]} 16. Qe2 {[%emt 0:03:35]} c5 {[%emt 0:03:52]} 17. Nxb5 {[%emt 0:09:57]} a6 {[%emt 0:05:26]} 18. Nd6 {[%emt 0:14:10]} Bxf3 {[%emt 0:00:13]} 19. Qxf3 {[%emt 0:00:02]} cxd4 {[%emt 0:00:10]} 20. Nc4 {[%emt 0:00:04]} Rac8 {[%emt 0:03:02]} 21. Rcd1 {[%emt 0:06:45]} Qb4 {[%emt 0:24:10]} 22. Qe2 {[%emt 0:07:34]} Rxc4 {[%emt 0:07:30]} 23. Bxc4 {[%emt 0:00:05]} Nxe5 {[%emt 0:00:05]} 24. Bxa6 {[%emt 0:11:55]} d3 {[%emt 0:00:47]} 25. Qd2 {[%emt 0:00:03]} Qa4 {[%emt 0:00:09]} 26. Rxe5 {[%emt 0:00:07]} Bxe5 {[%emt 0:00:16]} 27. Bxd3 {[%emt 0:00:07]} Qxa2 {[%emt 0:00:33]} 28. g3 {[%emt 0:10:15]} Qxb2 {[%emt 0:00:35]} 29. Qxb2 {[%emt 0:00:05]} Bxb2 {[%emt 0:00:08]} 30. Kg2 {[%emt 0:00:07]} Kg7 {[%emt 0:00:13]} 31. h3 {[%emt 0:00:14]} Bd4 {[%emt 0:01:51]} 32. f4 {[%emt 0:05:29]} Bc5 {[%emt 0:03:15]} 33. Kf3 {[%emt 0:01:10]} Ra8 {[%emt 0:00:42]} 34. g4 {[%emt 0:02:07]} Ra2 {[%emt 0:01:46]} 35. f5 {[%emt 0:02:35]} gxf5 {[%emt 0:05:46]} 36. gxf5 {[%emt 0:00:06]} e5 {[%emt 0:00:06]} 37. Rc1 {[%emt 0:02:34]} Bd4 {[%emt 0:00:46]} 38. Rc2 {[%emt 0:01:24]} Ra3 {[%emt 0:00:24]} 39. Ke4 {[%emt 0:00:26]} Ra1 {[%emt 0:00:11]} 40. Kf3 {[%emt 0:00:00]} Rh1 {[%emt 0:00:00]} 41. Kg3 {[%emt 0:17:38]} Rd1 {[%emt 0:03:24]} 42. Be4 {[%emt 0:02:03]} Re1 {[%emt 0:00:48]} 43. Bd5 {[%emt 0:00:09]} Rf1 {[%emt 0:01:03]} 44. Bf3 {[%emt 0:02:49]} Kf6 {[%emt 0:06:14]} 45. Rc6+ {[%emt 0:00:11]} Kxf5 {[%emt 0:00:55]} 46. Rxh6 {[%emt 0:00:30]} e4 {[%emt 0:02:32]} 47. Be2 {[%emt 0:04:15]} Rg1+ {[%emt 0:02:47]} 48. Kh2 {[%emt 0:00:10]} Rc1 {[%emt 0:00:28]} 49. Kg3 {[%emt 0:04:22]} Rc3+ {[%emt 0:00:32]} 50. Kg2 {[%emt 0:00:04]} Rc2 {[%emt 0:00:05]} 51. Kf1 {[%emt 0:00:03]} Kf4 {[%emt 0:00:17]} 52. Ra6 {[%emt 0:00:15]} f5 {[%emt 0:01:50]} 53. h4 {[%emt 0:00:36]} Ke3 {[%emt 0:02:02]} 54. Ra3+ {[%emt 0:01:01]} Bc3 {[%emt 0:00:07]} 55. Bb5 {[%emt 0:00:43]} f4 {[%emt 0:00:15]} 56. h5 {[%emt 0:00:32]} f3 {[%emt 0:00:41]} 57. Kg1 {[%emt 0:00:03]} Kf4 {[%emt 0:00:40]} 58. Ra8 {[%emt 0:01:15]} Bd4+ {[%emt 0:00:49]} 59. Kh1 {[%emt 0:00:15]} Kg3 {[%emt 0:03:00]} 60. Rg8+ {[%emt 0:00:04]} Kh4 {[%emt 0:00:24]} 61. Re8 {[%emt 0:01:30]} Rc1+ {[%emt 0:00:07]} 62. Kh2 {[%emt 0:00:01]} Bg1+ {[%emt 0:00:06]} 63. Kh1 {[%emt 0:00:03]} Bf2+ {[%emt 0:00:06]} 0-1

[Event "GAMMA Reykjavik Open 2019"]
[Site "Reykjavik"]
[Date "2019.04.16"]
[Round "9.16"]
[White "Sowray, Peter J"]
[Black "Korley, Kassa"]
[Result "0-1"]
[ECO "A14"]
[WhiteElo "2356"]
[BlackElo "2440"]
[Annotator "NA"]
[PlyCount "122"]
[EventDate "2019.04.04"]
[EventType "swiss"]
[EventCountry "ISL"]
[SourceTitle "playchess.com"]
[Source "ChessBase"]
[SourceQuality "1"]
[TimeControl "40/5400+30:1800+30"]

1. c4 {[%emt 0:00:00]} e6 {[%emt 0:00:00]} 2. g3 {[%emt 0:00:00]} d5 {[%emt 0:00:00]} 3. Bg2 {[%emt 0:00:00]} Nf6 {[%emt 0:00:19]} 4. Nf3 {[%emt 0:00:25]} Be7 {[%emt 0:00:04]} 5. O-O {[%emt 0:00:40]} O-O {[%emt 0:00:07]} 6. b3 {[%emt 0:01:39]} b6 {[%emt 0:00:11]} 7. Bb2 {[%emt 0:00:43]} Bb7 {[%emt 0:00:05]} 8. e3 {[%emt 0:02:18]} Nbd7 {[%emt 0:08:39]} 9. Nc3 {[%emt 0:03:49]} c5 $11 {[%emt 0:00:55]} 10. Qe2 {[%emt 0:10:06]} Rc8 {[%emt 0:16:49]} 11. Ne1 {[%emt 0:02:57]} Qc7 {[%emt 0:04:00]} 12. f4 {[%emt 0:01:50]} dxc4 {[%emt 0:18:11]} 13. bxc4 {[%emt 0:02:50]} Bxg2 {[%emt 0:00:08]} 14. Qxg2 {[%emt 0:01:23]} Rfd8 {[%emt 0:00:55]} 15. g4 {[%emt 0:07:44]} Nb8 {[%emt 0:02:51]} 16. g5 {[%emt 0:03:06]} Ne8 {[%emt 0:00:03]} 17. Nf3 {[%emt 0:03:01]} Nd6 {[%emt 0:01:46]} 18. Nb5 {[%emt 0:15:00]} Qb7 {[%emt 0:02:29]} 19. Nxd6 {[%emt 0:01:41]} Rxd6 {[%emt 0:00:19]} 20. Bc3 {[%emt 0:02:55]} Rcd8 {[%emt 0:01:56]} 21. Ne5 {[%emt 0:06:00]} Qxg2+ {[%emt 0:01:52]} 22. Kxg2 {[%emt 0:00:03]} f6 {[%emt 0:00:34]} 23. gxf6 {[%emt 0:00:57]} Bxf6 {[%emt 0:00:37]} 24. Kf3 {[%emt 0:03:40]} Bxe5 {[%emt 0:06:23]} 25. fxe5 {[%emt 0:00:28]} R6d7 {[%emt 0:00:26]} 26. Ke4 {[%emt 0:04:16]} Nc6 {[%emt 0:00:15]} 27. Rf4 {[%emt 0:09:28]} h6 {[%emt 0:02:22]} 28. Rb1 {[%emt 0:01:45]} Ne7 {[%emt 0:08:11]} 29. a4 {[%emt 0:02:08]} Nc6 {[%emt 0:00:09]} 30. h4 {[%emt 0:01:11]} h5 {[%emt 0:00:44]} 31. Rb5 {[%emt 0:02:14]} Rxd2 {[%emt 0:04:10]} 32. Bxd2 {[%emt 0:00:48]} Rxd2 {[%emt 0:00:02]} 33. Rb1 {[%emt 0:05:22]} Ra2 {[%emt 0:01:58]} 34. Rg1 {[%emt 0:00:23]} Rxa4 {[%emt 0:00:10]} 35. Rg5 {[%emt 0:00:11]} Rxc4+ {[%emt 0:01:22]} 36. Kd3 {[%emt 0:00:27]} Rc1 {[%emt 0:02:47]} 37. Rf3 {[%emt 0:02:14]} Rd1+ {[%emt 0:01:26]} 38. Kc4 {[%emt 0:01:02]} Rd5 {[%emt 0:08:17]} 39. Rfg3 {[%emt 0:01:52]} Nxe5+ {[%emt 0:00:03]} 40. Kb5 {[%emt 0:00:00]} c4+ {[%emt 0:00:00]} 41. Kb4 {[%emt 0:03:00]} a5+ {[%emt 0:08:26]} 42. Kc3 {[%emt 0:00:31]} Rd3+ {[%emt 0:00:35]} 43. Kb2 {[%emt 0:02:53]} Ng4 {[%emt 0:02:07]} 44. Rxh5 {[%emt 0:01:24]} Nxe3 {[%emt 0:00:19]} 45. Rhg5 {[%emt 0:01:35]} Rd2+ {[%emt 0:02:53]} 46. Kc1 {[%emt 0:03:36]} Rd1+ {[%emt 0:00:04]} 47. Kb2 {[%emt 0:00:04]} Nf5 {[%emt 0:00:10]} 48. Rg1 {[%emt 0:00:55]} Rd3 {[%emt 0:00:27]} 49. Ra1 {[%emt 0:02:32]} Rb3+ {[%emt 0:03:40]} 50. Kc1 {[%emt 0:00:50]} Nd4 {[%emt 0:03:40]} 51. Rb1 {[%emt 0:03:08]} Rc3+ {[%emt 0:00:37]} 52. Kb2 {[%emt 0:01:41]} Rc2+ {[%emt 0:00:20]} 53. Ka3 {[%emt 0:00:20]} b5 {[%emt 0:00:33]} 54. Rb2 {[%emt 0:00:19]} b4+ {[%emt 0:02:09]} 55. Ka2 {[%emt 0:00:09]} b3+ {[%emt 0:00:53]} 56. Kb1 {[%emt 0:02:09]} a4 {[%emt 0:01:42]} 57. Ra5 {[%emt 0:00:46]} c3 {[%emt 0:06:57]} 58. Ra8+ {[%emt 0:00:38]} Kf7 {[%emt 0:00:03]} 59. Rxc2 {[%emt 0:00:09]} Nxc2 {[%emt 0:00:13]} 60. Rxa4 {[%emt 0:00:44]} e5 {[%emt 0:00:32]} 61. Kc1 {[%emt 0:03:36]} Ne1 {[%emt 0:00:56]} 0-1

[Event "GAMMA Reykjavik Open 2019"]
[Site "Reykjavik"]
[Date "2019.04.16"]
[Round "9.18"]
[White "Borocz, Istvan"]
[Black "Potkin, Vladimir"]
[Result "0-1"]
[ECO "D01"]
[WhiteElo "2350"]
[BlackElo "2597"]
[Annotator "ChessBase"]
[PlyCount "70"]
[EventDate "2019.04.04"]
[EventType "swiss"]
[EventCountry "ISL"]
[SourceTitle "playchess.com"]
[Source "ChessBase"]
[SourceQuality "1"]
[TimeControl "40/5400+30:1800+30"]

1. Nc3 {[%emt 0:00:00]} d5 {[%emt 0:01:13]} 2. d4 {[%emt 0:00:40]} Nf6 {[%emt 0:00:45]} 3. Bg5 {[%emt 0:00:20]} Nbd7 {[%emt 0:01:20]} 4. Nf3 {[%emt 0:00:37]} e6 {[%emt 0:11:21]} 5. e3 {[%emt 0:06:13]} c5 {[%emt 0:06:18]} 6. Bd3 {[%emt 0:10:00]} c4 {[%emt 0:06:03]} 7. Be2 {[%emt 0:00:43]} Bb4 {[%emt 0:01:11]} 8. O-O {[%emt 0:01:13]} Bxc3 {[%emt 0:00:56]} 9. bxc3 {[%emt 0:00:35]} Qa5 {[%emt 0:00:05]} 10. Qb1 {[%emt 0:05:02]} Qxc3 {[%emt 0:08:12]} 11. a4 {[%emt 0:23:21]} Ne4 {[%emt 0:10:52]} 12. Bf4 {[%emt 0:11:13]} Qa5 {[%emt 0:00:28]} 13. Qb2 {[%emt 0:13:02]} Nc3 {[%emt 0:12:23]} 14. Rfe1 {[%emt 0:09:07]} Nxa4 {[%emt 0:03:28]} 15. Qa3 {[%emt 0:01:42]} b5 {[%emt 0:00:43]} 16. e4 {[%emt 0:03:34]} Bb7 {[%emt 0:03:07]} 17. exd5 {[%emt 0:01:13]} Bxd5 {[%emt 0:00:29]} 18. Ng5 {[%emt 0:01:57]} h6 {[%emt 0:08:43]} 19. Nh3 {[%emt 0:02:37]} O-O-O {[%emt 0:04:42]} 20. Qe7 {[%emt 0:01:21]} g5 {[%emt 0:01:12]} 21. Bd6 {[%emt 0:01:00]} Qb6 {[%emt 0:01:15]} 22. Bc5 {[%emt 0:01:45]} Ndxc5 {[%emt 0:03:23]} 23. dxc5 {[%emt 0:00:02]} Qc7 {[%emt 0:01:27]} 24. Qf6 {[%emt 0:00:16]} Nxc5 {[%emt 0:00:18]} 25. Bh5 {[%emt 0:01:09]} a6 {[%emt 0:01:28]} 26. f3 {[%emt 0:00:22]} Kb7 {[%emt 0:01:12]} 27. Nf2 {[%emt 0:00:02]} Qf4 {[%emt 0:01:11]} 28. Qc3 {[%emt 0:04:05]} f5 {[%emt 0:00:47]} 29. Qg7+ {[%emt 0:00:33]} Qc7 {[%emt 0:00:11]} 30. Qc3 {[%emt 0:00:02]} Rhg8 {[%emt 0:00:35]} 31. Qe3 {[%emt 0:00:44]} Qb6 {[%emt 0:00:43]} 32. Qe5 {[%emt 0:00:35]} Nd7 {[%emt 0:00:58]} 33. Qe2 {[%emt 0:00:22]} Rg7 {[%emt 0:00:47]} 34. f4 {[%emt 0:00:50]} g4 {[%emt 0:00:45]} 35. Rad1 {[%emt 0:00:35]} Nf6 {[%emt 0:00:21]} 0-1